Cogmind - Beta 12 @@@ ROGUE MODE // 2023.11.29 @ 02:07:34 Player: DreamAR Result: Destroyed by Executioner with Helical Railgun Performance ------------- Evolutions (5) 2500 Regions Visited (19) 3800 Robots Destroyed (185) 925 Value Destroyed (7449) 7449 Prototype IDs (69) 1380 Alien Tech Used (1) 200 Bonus (3577) 3577 TOTAL SCORE: 19831 Bonus ------- High Alert Combat Kills 68 Follower Combat Kills 1799 Met Data Miner 300 Met Imprinter 300 Was Imprinted 300 MAIN.C Attacked Warlord 500 Warlord Defense Kills 1708 Friendly Fire -1398 Cogmind --------- Core Integrity 0/1000 Matter 220/300 Energy 2/100 System Corruption 7% Temperature Cool (0) Movement Walking (96) Location -5/Warlord Parts ------- > --- POWER (1) -------- Zionite Heavy DM Reactor > --- PROPULSION (3) --- Zionite Composite Leg I Experimental Myomer Leg Experimental Myomer Leg > --- UTILITY (10) ----- Experimental Targeting Computer Experimental Armor Integrity Analyzer Improved Thermal Shield EM Disruption Field Advanced Remote Shield Makeshift Hacking Suite Makeshift Hacking Suite System Mapper Improved Field Recycling Unit > --- WEAPON (4) ------- KE Penetrator > --- INVENTORY (5) ---- Neutrino Core Vortex Chain Reactor Improved Diametric Drive Improved Diametric Drive Peak State ------------ > --- POWER ------------ Zionite Heavy DM Reactor > --- PROPULSION ------- Spiked Medium Treads Armored Medium Treads Zionite Composite Leg I > --- UTILITY ---------- Makeshift Hacking Suite Makeshift Hacking Suite Wardrone Bay > --- WEAPON ----------- KE Penetrator KE Penetrator Heavy Flak Cannon Enhanced Gauss Cannon > --- INVENTORY -------- Neutrino Core Improved Thermal Shield Vortex Catalyst Activator Datajack [Rating: 163] Favorites ----------- Power Improved Deuterium Engine Engine Improved Deuterium Engine Power Core Fission Core Reactor Cold Fusion Reactor Propulsion Armored Huge Wheel Treads Improved Treads Leg Armored Leg Wheel Armored Huge Wheel Hover Unit Backup Propulsion III Flight Unit Improved Diametric Drive Utility Large Storage Unit Device Experimental Sensor Array Storage Large Storage Unit Processor Improved Signal Interpreter Hackware Makeshift Hacking Suite Protection Layered Light Armor Plating Weapon Enhanced Autogun Energy Gun Particle Gun Energy Cannon Particle Cannon Ballistic Gun Enhanced Autogun Ballistic Cannon Mini Assault Cannon Launcher Mini Smartbomb Launcher Impact Weapon Impact Mace Slashing Weapon Great Axe Special Melee Weapon Datajack Build | -11 -10 -10 -9 -9 -8 -7 -7 -7 -7 -6 -6 -6 -6 -6 -5 -5 -5 -5 -5 ------- Run | Jun Mat Min Mat Min Mat Fac Low Low Dat Pro Fac Low Low Zio Pro Fac Upp Upp War Slots Evolved 10 | . . . 2 . 2 2 . . . . 2 . . . . 2 . . . Power . | . . . . . . . . . . . . . . . . . . . . Propulsion . | . . . . . . . . . . . . . . . . . . . . Utility 8 | . . . 1 . 2 1 . . . . 2 . . . . 2 . . . Weapon 2 | . . . 1 . . 1 . . . . . . . . . . . . . Parts Attached 374 | 10 3 12 25 6 8 32 4 20 4 8 72 8 7 10 8 45 2 43 47 Power 27 | 2 . 1 1 1 . 5 . 2 . 2 3 . . . . 5 . 2 3 Engine 11 | 2 . 1 1 . . 2 . 2 . 1 1 . . . . 1 . . . Core 10 | . . . . 1 . 3 . . . 1 1 . . . . 2 . 1 1 Reactor 6 | . . . . . . . . . . . 1 . . . . 2 . 1 2 Propulsion 45 | 4 1 5 5 1 . 5 . 3 . . 2 . . . . 2 . 6 11 Treads 17 | 2 . 2 5 1 . 1 . 1 . . 1 . . . . 2 . 1 1 Leg 18 | 2 1 3 . . . . . 1 . . 1 . . . . . . 3 7 Wheel 6 | . . . . . . 3 . 1 . . . . . . . . . 2 . Hover 2 | . . . . . . 1 . . . . . . . . . . . . 1 Flight 2 | . . . . . . . . . . . . . . . . . . . 2 Utility 161 | 2 1 3 7 2 4 6 3 5 . 2 56 3 5 4 2 15 . 23 18 Device 119 | 1 . 3 6 1 1 3 3 3 . 2 45 3 3 4 1 11 . 14 15 Storage 4 | 1 . . . . 2 . . . . . . . . . . 1 . . . Processor 12 | . 1 . 1 . . 2 . 2 . . . . 1 . . 2 . 1 2 Hackware 5 | . . . . . . . . . . . . . . . . . . 4 1 Protection 21 | . . . . 1 1 1 . . . . 11 . 1 . 1 1 . 4 . Artifact . | . . . . . . . . . . . . . . . . . . . . Weapon 141 | 2 1 3 12 2 4 16 1 10 4 4 11 5 2 6 6 23 2 12 15 Energy Gun 6 | 1 1 2 . . . . . . . . . . . . . . . . 2 Energy Cannon 2 | . . . 1 . . . . . . . . . . . . . . . 1 Ballistic Gun 62 | 1 . 1 6 1 3 7 1 2 2 . 7 3 1 3 3 11 1 4 5 Ballistic Cannon 20 | . . . 5 . . 4 . 3 1 . . . . . . 1 . 3 3 Launcher 22 | . . . . 1 . . . 2 . 1 2 2 . 1 2 5 1 2 3 Special Weapon . | . . . . . . . . . . . . . . . . . . . . Impact Weapon 20 | . . . . . . 5 . 3 . 2 2 . . 1 1 4 . 2 . Slashing Weapon 2 | . . . . . 1 . . . . . . . . . . 1 . . . Piercing Weapon . | . . . . . . . . . . . . . . . . . . . . Special Melee Weapon 7 | . . . . . . . . . 1 1 . . 1 1 . 1 . 1 1 Unidentified Prototypes 35 | . . 2 1 . . 3 . 1 . . 7 . . 1 . 6 . 3 11 Corrupted Parts 1 | . . . . . . . . . . . . . . . . . . 1 . System Corruption 2 | . . . . . . . . . . . . . . . . . . 2 . Parts Lost 43 | . . . . . 1 2 . 8 . 4 1 . . . . . . 20 7 Power 4 | . . . . . . . . 1 . 2 . . . . . . . 1 . Propulsion 3 | . . . . . . . . . . . . . . . . . . 2 1 Utility 21 | . . . . . . . . 3 . 2 1 . . . . . . 12 3 Weapon 15 | . . . . . 1 2 . 4 . . . . . . . . . 5 3 Highest Loss Streak 17 | . . . . . 1 1 . 8 . 2 1 . . . . . . 17 2 To Critical Strikes 2 | . . . . . . . . 2 . . . . . . . . . . . Average Slot Usage (%) 93 | . 100 100 98 100 100 94 92 91 80 91 89 93 92 92 93 93 94 88 90 Engine 3 | . 14 14 11 2 . 4 7 7 7 4 1 . . . . . . . . Core 1 | . . . . 8 9 2 . . . 2 4 . . . . 2 . 2 . Reactor 2 | . . . . . . . . . . . . 6 6 6 6 1 5 2 4 Treads 6 | . . 5 22 22 18 4 . . 7 7 2 . . . . 8 11 2 7 Leg 3 | . 28 22 . . . . . 3 . . 3 6 6 6 6 1 . 4 7 Wheel 3 | . . . . . . 4 7 7 7 7 6 6 6 6 6 1 . 3 . Device 18 | . 1 8 15 10 18 15 21 19 14 13 16 18 17 17 17 28 27 22 25 Storage 6 | . 14 14 11 11 9 7 7 7 7 7 6 6 6 6 6 5 5 . . Processor 13 | . 12 5 6 11 9 14 8 11 21 21 18 18 18 18 18 14 16 7 3 Hackware 2 | . . . . . . . . . . . . . . . . . . 14 18 Protection 3 | . . . . . 9 6 7 4 . . 4 6 6 6 6 5 5 3 . Ballistic Gun 18 | . 14 14 30 32 26 22 21 15 2 14 20 21 24 12 24 15 11 9 10 Ballistic Cannon 3 | . . . 1 . . 2 7 8 2 7 1 . . . . 1 5 7 8 Impact Weapon 1 | . . . . . . 4 1 3 7 6 2 . . 5 . 3 . . . Naked Turns . | . . . . . . . . . . . . . . . . . . . . Heaviest Build 97 | 14 14 18 29 31 52 63 61 66 54 53 81 84 75 66 67 84 86 86 97 Greatest Support 93 | 40 20 40 43 51 51 51 28 28 28 28 28 28 28 28 28 93 93 93 74 Greatest Overweight (x) 26 | . . . . . 1 2 2 2 1 1 2 2 2 2 2 2 . 26 8 Average Overweight (x) 1 | . . . . . . . 1 1 1 1 1 2 2 1 2 . . 1 1 Largest Inventory Capacity 15 | 8 8 8 8 8 15 15 15 15 15 15 15 15 15 15 15 15 15 15 5 Average Capacity 12 | 7 8 8 8 8 14 15 15 15 15 15 15 15 15 15 15 15 15 6 5 Most Carried 15 | 7 8 8 8 8 12 15 15 15 15 15 15 15 15 15 15 15 15 15 5 Average Carried 11 | 6 7 7 7 7 8 13 13 12 14 13 14 13 15 14 15 14 15 6 4 Final Capacity 15 | 8 8 8 8 8 15 15 15 15 15 15 15 15 15 15 15 15 15 5 5 Final Carried 15 | 7 8 6 8 8 9 15 14 13 13 14 12 15 15 15 15 15 15 5 5 Class Distribution -------------------- 30% | Skirmisher 17% | Mutant 9% | Scavenger-Gunner 9% | Scavenger-Mutant 8% | Assassin 7% | Tank 6% | Derelict-Gunner Dominant Class ---------------- Mutant | -10/Materials Mutant | -10/Mines Skirmisher | -9/Materials Skirmisher | -9/Mines Skirmisher | -8/Materials Skirmisher | -7/Factory Tank | -7/Lower Caves Tank | -7/Lower Caves Commander-Mutant | -7/Data Miner Scavenger-Gunner | -6/Proximity Caves Skirmisher | -6/Factory Skirmisher | -6/Lower Caves Mutant | -6/Lower Caves Assassin | -6/Zion Skirmisher | -5/Proximity Caves Scavenger-Gunner | -5/Factory Scavenger-Mutant | -5/Upper Caves Derelict-Gunner | -5/Upper Caves Derelict-Gunner | -5/Warlord Resources | -11 -10 -10 -9 -9 -8 -7 -7 -7 -7 -6 -6 -6 -6 -6 -5 -5 -5 -5 -5 ----------- Run | Jun Mat Min Mat Min Mat Fac Low Low Dat Pro Fac Low Low Zio Pro Fac Upp Upp War Matter Collected 8447 | 306 53 152 839 375 159 1071 364 515 . 442 1313 256 43 60 280 519 270 993 437 Remotely 65 | . . . . . . . . . . . . . . . . . . 65 . Salvage Created 7758 | 169 198 265 962 87 58 1257 319 426 . 311 1295 362 . . 444 371 164 735 335 Parts 336 | 10 19 14 55 . 1 59 13 22 . 12 36 13 . . 18 24 4 24 12 Haulers Intercepted 8 | . 1 . 3 . . 2 . . . . 2 . . . . . . . . Recyclers Shooed 4 | 1 . . . . . 1 . . . . 2 . . . . . . . . Parts Field Recycled 176 | . . . . . . 3 . 10 . . 122 11 13 . . . . 11 6 Retrieved Matter 2610 | . . . . . . 45 . 271 . . 1736 221 100 . . . . 95 142 Parts Self-Destructed 121 | . . . . . . . 18 9 . 22 . 20 . . 29 . 5 18 . Prevented 7 | . . . . . . . . 6 . . . . . . 1 . . . . Kills | -11 -10 -10 -9 -9 -8 -7 -7 -7 -7 -6 -6 -6 -6 -6 -5 -5 -5 -5 -5 ------- Run | Jun Mat Min Mat Min Mat Fac Low Low Dat Pro Fac Low Low Zio Pro Fac Upp Upp War Combat Hostiles Destroyed 156 | . 2 6 20 12 1 20 7 17 . 7 7 9 . . 8 6 3 18 13 Melee 1 | . . . . . . . . 1 . . . . . . . . . . . Guns 89 | . 2 6 20 7 1 15 4 2 . 2 5 4 . . 5 4 1 9 2 Cannons 21 | . . . . . . 3 3 2 . 2 1 . . . . 1 . 7 2 AOE 41 | . . . . 5 . . . 11 . 3 1 5 . . 3 . 2 2 9 Classes Destroyed 24 | 2 5 1 3 2 . 4 . 3 . . . . . . . . 1 2 1 Worker 3 | . 1 1 . . . . . . . . . . . . . 1 . . . Builder 3 | . 1 . . . . . . . . . 2 . . . . . . . . Tunneler 5 | 4 . 1 . . . . . . . . . . . . . . . . . Hauler 8 | . 1 . 3 . . 2 . . . . 2 . . . . . . . . Recycler 10 | 1 . . 1 . . 2 . . . . 6 . . . . . . . . Mechanic 1 | . . . 1 . . . . . . . . . . . . . . . . Operator 1 | . . . . . . 1 . . . . . . . . . . . . . Drone 2 | . . . . . . 1 . . . 1 . . . . . . . . . Watcher 5 | . 1 . 2 . . 1 . . . . . . . . . 1 . . . Swarmer 18 | . . 3 8 . . . . 5 . . . . . . . . . 2 . Grunt 67 | . 2 3 9 . . 10 5 6 . 3 2 4 . . 4 2 3 9 5 Brawler 5 | . . . 1 . . 1 . . . . . 2 . . . . . 1 . Duelist 4 | . . . . . . 1 . . . . . 2 . . 1 . . . . Protector 2 | . . . . . . . . . . . . . . . . . . 1 1 Sentry 18 | . . . 2 . 1 3 1 2 . 2 1 1 . . 2 1 . 2 . Demolisher 1 | . . . . 1 . . . . . . . . . . . . . . . Hunter 6 | . . . . . . . . 1 . 1 2 . . . . . . 2 . Programmer 20 | . . . . . . 5 1 1 . . 2 . . . 2 3 . . 6 Behemoth 1 | . . . . . . . . 1 . . . . . . . . . . . Executioner 1 | . . . . . . . . . . . . . . . . . . . 1 Samaritan 1 | . . . . . . . . . . . . . . . . . 1 . . Assembled 11 | . . . . 11 . . . . . . . . . . . . . . . Wasp 1 | . . . . . . . . . . . . . . . 1 . . . . Thug 1 | . . 1 . . . . . . . . . . . . . . . . . Fireman 1 | . . . . . . . . . . . . . . . . . . 1 . Mutant 2 | . . . . . . . . 1 . . . . . . . . . 1 . Best Kill Streak 13 | 3 3 2 13 10 1 8 3 12 . 5 3 6 . . 2 3 2 7 7 Combat Bots Only 12 | . 2 2 11 10 1 4 3 12 . 5 1 6 . . 2 2 2 7 7 Max Kills in Single Turn 5 | 1 2 1 2 3 1 1 1 5 . 3 3 5 . . 2 2 2 2 5 Gunslinging 1 | . . . 1 . . . . . . . . 1 . . . . . . . Exploded 5 | . . . . 2 . . . 5 . 3 1 5 . . 2 . 1 1 4 Melee 1 | . . . . . . . . 1 . . . . . . . . . . . Uniques/NPCs Destroyed . | . . . . . . . . . . . . . . . . . . . . Combat | -11 -10 -10 -9 -9 -8 -7 -7 -7 -7 -6 -6 -6 -6 -6 -5 -5 -5 -5 -5 -------- Run | Jun Mat Min Mat Min Mat Fac Low Low Dat Pro Fac Low Low Zio Pro Fac Upp Upp War Damage Taken 10370 | . 108 378 381 497 137 907 222 1070 . 558 234 186 . . 205 183 44 3162 2098 Core 1596 | . 16 97 39 98 13 118 15 47 . 96 16 10 . . 1 29 . 368 633 Absorbed by Shields 1002 | . . . . . . . 68 216 . 100 244 82 . . 91 97 20 67 17 Reduced by Siege Mode 123 | . . . . . . . . . . . . . . . . . . 123 . Redirected to Shielding 121 | . . . . . . . . . . . . . . . . . . 121 . Regen/Repaired (Parts) 329 | . . . 40 . . 154 . . . . . . . . . 32 . . 103 Core Remaining (%) 78 | 100 . 54 . 65 97 . . . . 60 . . . . 96 . . . . Volleys Fired 392 | 16 13 32 58 20 7 59 16 26 . 18 28 9 . . 15 11 10 44 10 Largest 4 | 2 2 2 3 3 3 4 4 4 . 4 4 4 . . 4 4 3 4 4 Hottest 176 | 60 60 85 85 83 75 146 126 131 . 143 111 128 . . 114 132 123 176 176 Shots Fired 1204 | 32 26 63 171 52 21 213 58 100 . 53 108 37 . . 59 36 16 130 29 Gun 1004 | 32 26 63 171 46 21 188 41 65 . 33 105 36 . . 53 33 6 73 12 Cannon 146 | . . . . . . 25 17 17 . 19 3 . . . . 3 3 48 11 Launcher 54 | . . . . 6 . . . 18 . 1 . 1 . . 6 . 7 9 6 Special . | . . . . . . . . . . . . . . . . . . . . Kinetic 1087 | 16 13 32 168 46 21 213 58 82 . 52 108 36 . . 53 36 9 121 23 Thermal 22 | . . 19 3 . . . . . . . . . . . . . . . . Explosive 48 | . . . . 6 . . . 18 . 1 . 1 . . 6 . 7 9 . Electromagnetic 41 | 16 13 12 . . . . . . . . . . . . . . . . . Entropic 6 | . . . . . . . . . . . . . . . . . . . 6 Robot Hit Streak 18 | 5 11 18 6 4 3 11 9 9 . 9 9 11 . . 7 5 4 18 6 Robot Miss Streak 10 | 1 2 5 10 3 3 5 3 5 . 2 4 3 . . 2 4 1 6 4 Penetration Max 1 | . . . . . . . . . . 1 . 1 . . . 1 . 1 1 Secondary Targets 8 | . . 1 5 . . 1 . . . . . 1 . . . . . . . Max Gunslinging Chain 1 | . . 1 1 . . 1 . . . . . 1 . . . . . . . Shots Hit Robots 697 | 20 17 40 77 25 10 117 38 60 1 31 73 21 . 3 32 23 6 84 19 Core Hits 420 | 8 9 13 31 21 3 53 15 44 . 22 26 36 . . 33 12 15 62 17 Critical Kills 5 | . . . . . . . . 1 . . . . . . . 1 1 2 . Critical Parts Destroyed 18 | . . . 1 . . 2 . 2 . 1 5 1 . . 1 2 . 3 . Critical Strikes 38 | 1 . 1 1 . . 6 1 3 . 2 5 1 . . 1 3 2 9 2 Burn 1 | . . 1 . . . . . . . . . . . . . . . . . Destroy 17 | . . . 1 . . 1 . 2 . 1 3 1 . . 1 2 1 4 . Blast 11 | . . . . . . 3 1 . . 1 . . . . . . 1 3 2 Corrupt 1 | 1 . . . . . . . . . . . . . . . . . . . Smash 8 | . . . . . . 2 . 1 . . 2 . . . . 1 . 2 . Melee Attacks 132 | . . . . . 1 60 . 9 1 5 10 . . 4 2 29 . 9 2 Impact 120 | . . . . . . 60 . 9 . 4 10 . . 1 2 26 . 8 . Slashing 1 | . . . . . 1 . . . . . . . . . . . . . . Piercing . | . . . . . . . . . . . . . . . . . . . . Sneak Attacks 16 | . . . . . . 1 . . 1 1 5 . . 3 . 3 . 1 1 Combat Hostiles . | . . . . . . . . . . . . . . . . . . . . Follow-up Attacks . | . . . . . . . . . . . . . . . . . . . . Damage Inflicted 21796 | 196 209 517 1400 791 145 2598 699 2227 . 1031 2096 1225 . . 1283 717 610 3329 2723 Guns 10656 | 196 209 517 1400 426 145 1876 482 688 . 350 1229 490 . . 598 591 145 1137 177 Cannons 2588 | . . . . . . 375 217 250 . 370 53 . . . . 78 39 922 284 Explosions 7143 | . . . . 341 . . . 1106 . 311 224 735 . . 685 . 426 1053 2262 Melee 1377 | . . . . . . 347 . 175 . . 590 . . . . 48 . 217 . Ramming 32 | . . . . 24 . . . 8 . . . . . . . . . . . Kinetic 12680 | 89 84 202 1383 426 145 2251 699 938 . 720 1282 490 . . 598 669 184 2059 461 Thermal 485 | . . 214 17 30 . . . . . . 224 . . . . . . . . Explosive 4627 | . . . . 311 . . . 1106 . 311 . 735 . . 685 . 426 1053 . Electromagnetic 333 | 107 125 101 . . . . . . . . . . . . . . . . . Impact 1377 | . . . . . . 347 . 175 . . 590 . . . . 48 . 217 . Slashing . | . . . . . . . . . . . . . . . . . . . . Piercing . | . . . . . . . . . . . . . . . . . . . . Entropic 2262 | . . . . . . . . . . . . . . . . . . . 2262 Highest Corruption 13 | . . . . . . 4 4 8 8 8 2 2 2 2 . . . 13 13 Average Corruption 5 | . . . . . . 3 4 6 8 8 1 2 2 2 . . . 12 7 Corruption Purged . | . . . . . . . . . . . . . . . . . . . . Corruption Blocked 8 | . . . . . . . . . . . . . . . . 8 . . . Effects 247 | . . . . . . 12 30 46 3 46 15 12 14 2 . . . 48 19 Message Errors 55 | . . . . . . 4 8 8 . 7 4 3 3 . . . . 12 6 Matter Fused 55 | . . . . . . 5 4 10 1 16 1 1 5 . . . . 8 4 Heat Flow Errors 23 | . . . . . . 2 3 4 . 5 1 1 . . . . . 4 3 Energy Discharges 25 | . . . . . . . 5 2 . 4 1 . 1 . . . . 10 2 Parts Fused 1 | . . . . . . . 1 . . . . . . . . . . . . Data Loss (minor) 40 | . . . . . . . 3 11 1 7 5 2 5 . . . . 6 . Data Loss (major) 18 | . . . . . . . 2 4 . 1 . 3 . 2 . . . 5 1 Misfires 15 | . . . . . . . 1 3 . 4 2 2 . . . . . 2 1 Alerts 8 | . . . . . . 1 . 4 1 . 1 . . . . . . . 1 Weapon Failures 7 | . . . . . . . 3 . . 2 . . . . . . . 1 1 Overload Shots . | . . . . . . . . . . . . . . . . . . . . Overflow Damage 1046 | . . . . 12 . 190 13 47 . 5 527 . . . . 48 8 54 142 Projectiles 84 | . . . . . . 62 13 . . . . . . . . . 8 . 1 Explosions 292 | . . . . 12 . . . 13 . 5 87 . . . . . . 34 141 Melee 670 | . . . . . . 128 . 34 . . 440 . . . . 48 . 20 . Knockbacks 20 | . . . . . . 4 1 . . 2 4 . . . . . . 8 1 Impact 6 | . . . . . . 2 . . . . 4 . . . . . . . . Kinetic 12 | . . . . . . 2 1 . . 1 . . . . . . . 7 1 Secondary 2 | . . . . . . . . . . 1 . . . . . . . 1 . Self-Inflicted Damage 343 | . . . . 44 . . . 25 . 49 37 . . . 49 . . . 139 Shots 8 | . . . . 2 . . . 1 . 1 1 . . . 2 . . . 1 Rammed 4 | . . . . 4 . . . . . . . . . . . . . . . Targets Rammed 8 | . . . . 4 . . . 4 . . . . . . . . . . . Kicked 4 | . . . . . . . . 4 . . . . . . . . . . . Crushed . | . . . . . . . . . . . . . . . . . . . . Highest Temperature 683 | 20 76 162 250 192 60 343 311 233 . 250 267 85 . . 68 68 222 683 381 Average Temperature 102 | 14 27 56 72 105 23 118 127 70 . 82 81 22 . . 23 31 94 223 134 Received Heat Transfer 2204 | . 42 147 159 . . 291 133 196 . 42 38 46 . . 39 8 4 984 75 Effects 17 | . . . . . . 2 . . . 1 . . . . . . . 14 . Energy Bleed 2 | . . . . . . . . . . 1 . . . . . . . 1 . Interference 4 | . . . . . . 2 . . . . . . . . . . . 2 . Matter Decay 3 | . . . . . . . . . . . . . . . . . . 3 . Short Circuit 3 | . . . . . . . . . . . . . . . . . . 3 . Damage (minor) 4 | . . . . . . . . . . . . . . . . . . 4 . Damage (major) 1 | . . . . . . . . . . . . . . . . . . 1 . Siege Activations 2 | . . . . . . . . . . . . . . . . . 1 1 . Total Turns 36 | . . . . . . . . . . . . . . . . . 6 30 . Longest Duration 30 | . . . . . . . . . . . . . . . . . 6 30 . Robots Corrupted . | . . . . . . . . . . . . . . . . . . . . Combat Hostiles . | . . . . . . . . . . . . . . . . . . . . Parts Fried 11 | 1 . . . . . 1 . . . . 9 . . . . . . . . Impact Corruptions 20 | . . . . . . 4 . 1 . . 13 . . . . 1 . 1 . Robots Melted . | . . . . . . . . . . . . . . . . . . . . Combat Hostiles . | . . . . . . . . . . . . . . . . . . . . Parts Melted 5 | . . . . . 1 . . . . . 1 . . . 2 . . . 1 Heat Transferred 795 | . . 558 37 50 . . . . . . 150 . . . . . . . . Parts Sabotaged . | . . . . . . . . . . . . . . . . . . . . Parts Stolen . | . . . . . . . . . . . . . . . . . . . . Parts Stripped . | . . . . . . . . . . . . . . . . . . . . Power Chain Reactions . | . . . . . . . . . . . . . . . . . . . . Missiles Intercepted . | . . . . . . . . . . . . . . . . . . . . Alert | -11 -10 -10 -9 -9 -8 -7 -7 -7 -7 -6 -6 -6 -6 -6 -5 -5 -5 -5 -5 ------- Run | Jun Mat Min Mat Min Mat Fac Low Low Dat Pro Fac Low Low Zio Pro Fac Upp Upp War Peak Influence 462 | 25 102 278 462 266 75 408 . . . . 184 . . . . 456 . . . Initial 219 | . 16 39 11 169 . 6 . . . . 9 . . . . 219 . . . Average 154 | 9 50 145 280 72 32 175 . . . . 88 . . . . 209 . . . Maximum Alert Level 2 | . . 1 2 1 . 2 . . . . . . . . . 2 . . . Low Security (%) 67 | 100 100 88 29 93 100 56 . . . . 100 . . . . 37 . . . Level 1 27 | . . 11 47 6 . 41 . . . . . . . . . 61 . . . Level 2 4 | . . . 22 . . 2 . . . . . . . . . 1 . . . Level 3 . | . . . . . . . . . . . . . . . . . . . . Level 4 . | . . . . . . . . . . . . . . . . . . . . Level 5 . | . . . . . . . . . . . . . . . . . . . . High Security . | . . . . . . . . . . . . . . . . . . . . Max Security . | . . . . . . . . . . . . . . . . . . . . Squads Dispatched 32 | . 1 . 4 1 . 14 . 1 . . 7 . . . 1 2 . 1 . Investigation 11 | . 1 . 4 1 . 3 . 1 . . 1 . . . . . . . . Extermination 11 | . . . . . . 6 . . . . 3 . . . . 2 . . . Reinforcement 5 | . . . . . . 2 . . . . 3 . . . . . . . . Assault 2 | . . . . . . . . . . . . . . . 1 . . 1 . Garrison 3 | . . . . . . 3 . . . . . . . . . . . . . Intercept . | . . . . . . . . . . . . . . . . . . . . Searches Triggered . | . . . . . . . . . . . . . . . . . . . . Data Miner Redirects 1 | . . . . . . . . . . . 1 . . . . . . . . Construction Impeded . | . . . . . . . . . . . . . . . . . . . . Haulers Reinforced 2 | . . . . . . . . . . . 2 . . . . . . . . Active Scanning Responses . | . . . . . . . . . . . . . . . . . . . . Cargo Convoy Interrupts 1 | . . . . . . . . . . . . . . . . 1 . . . Stealth | -11 -10 -10 -9 -9 -8 -7 -7 -7 -7 -6 -6 -6 -6 -6 -5 -5 -5 -5 -5 --------- Run | Jun Mat Min Mat Min Mat Fac Low Low Dat Pro Fac Low Low Zio Pro Fac Upp Upp War Distress Signals 8 | . . . 4 . . 2 . . . . . . . . . 1 . . 1 Communications Jammed . | . . . . . . . . . . . . . . . . . . . . Distress Signals . | . . . . . . . . . . . . . . . . . . . . Times Spotted 274 | . 7 13 38 14 4 39 8 18 . 14 8 15 . . 19 17 4 26 30 Peak Tracking Total 14 | . 4 3 11 7 2 7 4 11 . 10 2 7 . . 5 5 1 6 14 Tactical Retreats 20 | . . . 4 1 . 5 . . . 1 . . . . . 1 . 7 1 Traps | -11 -10 -10 -9 -9 -8 -7 -7 -7 -7 -6 -6 -6 -6 -6 -5 -5 -5 -5 -5 ------- Run | Jun Mat Min Mat Min Mat Fac Low Low Dat Pro Fac Low Low Zio Pro Fac Upp Upp War Traps Triggered 10 | . 1 . 2 . . 5 . . . . . . . . . 2 . . . Indirectly . | . . . . . . . . . . . . . . . . . . . . Trap Hack Attempts . | . . . . . . . . . . . . . . . . . . . . Triggered . | . . . . . . . . . . . . . . . . . . . . Disarmed . | . . . . . . . . . . . . . . . . . . . . Reprogrammed . | . . . . . . . . . . . . . . . . . . . . Reused . | . . . . . . . . . . . . . . . . . . . . Traps Extracted . | . . . . . . . . . . . . . . . . . . . . Installed 1 | . . . . . . . . . . . . . . . . . 1 . . Triggered 37 | . . . . . . . . 1 . . . . . . . 3 . . 33 Machines | -11 -10 -10 -9 -9 -8 -7 -7 -7 -7 -6 -6 -6 -6 -6 -5 -5 -5 -5 -5 ---------- Run | Jun Mat Min Mat Min Mat Fac Low Low Dat Pro Fac Low Low Zio Pro Fac Upp Upp War Machines Disabled 27 | . . 1 1 2 . . . 6 . 4 8 1 . . . . . 1 3 Max in Single Turn 5 | . . 1 1 1 . . . 2 . 1 5 1 . . . . . 1 1 Machines Repaired . | . . . . . . . . . . . . . . . . . . . . Machines Sabotaged . | . . . . . . . . . . . . . . . . . . . . Overloaded Fab Kills . | . . . . . . . . . . . . . . . . . . . . Hacking | -11 -10 -10 -9 -9 -8 -7 -7 -7 -7 -6 -6 -6 -6 -6 -5 -5 -5 -5 -5 --------- Run | Jun Mat Min Mat Min Mat Fac Low Low Dat Pro Fac Low Low Zio Pro Fac Upp Upp War Machines Accessed 55 | . 2 2 6 1 4 15 . 3 4 1 5 2 1 1 . 3 1 . 4 Terminals 20 | . 2 1 4 . 3 6 . 1 . 1 1 . . . . . 1 . . Fabricators 6 | . . . . . . 4 . . . . 2 . . . . . . . . Repair Stations 5 | . . . 1 . . 2 . . . . 1 . . . . 1 . . . Recycling Units 3 | . . . . . . 2 . . . . 1 . . . . . . . . Scanalyzers 5 | . . . 1 . 1 1 . . . . . . . . . 2 . . . Garrison Access . | . . . . . . . . . . . . . . . . . . . . Total Hacks 194 | . 7 3 35 1 13 42 . 5 30 7 19 2 1 4 . 13 1 . 11 Successful 131 | . 2 1 17 1 9 19 . 5 30 7 11 2 1 4 . 10 1 . 11 Failed 63 | . 5 2 18 . 4 23 . . . . 8 . . . . 3 . . . Catastrophic 7 | . 2 . 1 . 1 2 . . . . 1 . . . . . . . . Database Lockouts . | . . . . . . . . . . . . . . . . . . . . Manual 56 | . 4 . 11 . 10 16 . . . . 4 . . . . 10 . . 1 Terminals 69 | . 7 2 14 . 10 21 . 3 . 7 4 . . . . . 1 . . Fabricators 15 | . . . . . . 10 . . . . 5 . . . . . . . . Repair Stations 23 | . . . 11 . . 5 . . . . 5 . . . . 2 . . . Recycling Units 8 | . . . . . . 3 . . . . 5 . . . . . . . . Scanalyzers 27 | . . . 10 . 3 3 . . . . . . . . . 11 . . . Garrison Access . | . . . . . . . . . . . . . . . . . . . . Terminal Hacks 72 | . 1 1 2 1 3 3 . 5 30 7 . 2 1 4 . . 1 . 11 Record 28 | . . . . . . . . 3 11 7 . . . . . . 1 . 6 Part Schematic 16 | . . . . . 1 . . . 11 . . . . 4 . . . . . Robot Schematic 5 | . . . . . . . . . 5 . . . . . . . . . . Robot Analysis 2 | . . . 1 . . 1 . . . . . . . . . . . . . Prototype ID Bank 8 | . . . . . 1 . . . 3 . . . . . . . . . 4 Open Door 8 | . . 1 . 1 . . . 2 . . . 2 1 . . . . . 1 Branch Access Points 3 | . 1 . . . 1 1 . . . . . . . . . . . . . Unreport Threat 1 | . . . . . . 1 . . . . . . . . . . . . . Locate Traps 1 | . . . 1 . . . . . . . . . . . . . . . . Fabricator Hacks 9 | . . . . . . 6 . . . . 3 . . . . . . . . Network Status 1 | . . . . . . . . . . . 1 . . . . . . . . Load Schematic 5 | . . . . . . 4 . . . . 1 . . . . . . . . Build 3 | . . . . . . 2 . . . . 1 . . . . . . . . Repair Station Hacks 13 | . . . 6 . . 3 . . . . 2 . . . . 2 . . . Scan Component 8 | . . . 3 . . 2 . . . . 2 . . . . 1 . . . Repair 5 | . . . 3 . . 1 . . . . . . . . . 1 . . . Recycling Unit Hacks 5 | . . . . . . 1 . . . . 4 . . . . . . . . Report Inventory 1 | . . . . . . . . . . . 1 . . . . . . . . Retrieve Matter 3 | . . . . . . 1 . . . . 2 . . . . . . . . Retrieve Components 1 | . . . . . . . . . . . 1 . . . . . . . . Scanalyzer 18 | . . . 6 . 3 1 . . . . . . . . . 8 . . . Insert Component 10 | . . . 3 . 2 1 . . . . . . . . . 4 . . . Analyze 8 | . . . 3 . 1 . . . . . . . . . . 4 . . . Garrison Access Hacks . | . . . . . . . . . . . . . . . . . . . . Unauthorized Hacks 14 | . 1 . 3 . 3 5 . . . . 2 . . . . . . . . Terminals 14 | . 1 . 3 . 3 5 . . . . 2 . . . . . . . . Assimilate 1 | . . . . . . . . . . . 1 . . . . . . . . Botnet 13 | . 1 . 3 . 3 5 . . . . 1 . . . . . . . . Fabricators . | . . . . . . . . . . . . . . . . . . . . Repair Stations . | . . . . . . . . . . . . . . . . . . . . Recycling Units . | . . . . . . . . . . . . . . . . . . . . Scanalyzers . | . . . . . . . . . . . . . . . . . . . . Garrison Access . | . . . . . . . . . . . . . . . . . . . . Data Cores Recovered 1 | . . . . . 1 . . . . . . . . . . . . . . Used . | . . . . . . . . . . . . . . . . . . . . Hacking Detections 36 | . 2 1 6 . 4 15 . 1 . 1 4 . . . . 2 . . . Full Trace Events 7 | . . . 2 . . 3 . 1 . . 1 . . . . . . . . Feedback Events 1 | . . . . . . . . 1 . . . . . . . . . . . Corruption 1 | . . . . . . . . 1 . . . . . . . . . . . Feedback Blocked . | . . . . . . . . . . . . . . . . . . . . Robot Schematics Acquired 6 | . . . . . . . . . 5 . . . . 1 . . . . . Robots Built . | . . . . . . . . . . . . . . . . . . . . Authchips . | . . . . . . . . . . . . . . . . . . . . Time . | . . . . . . . . . . . . . . . . . . . . Total Robot Build Rating . | . . . . . . . . . . . . . . . . . . . . Part Schematics Acquired 33 | . . . 2 . 2 . . . 11 . . . . 15 . 3 . . . Parts Built 3 | . . . . . . 2 . . . . 1 . . . . . . . . Authchips . | . . . . . . . . . . . . . . . . . . . . Time 378 | . . . . . . 174 . . . . 204 . . . . . . . . Total Part Build Rating 14 | . . . . . . 6 . . . . 8 . . . . . . . . Parts Repaired 5 | . . . 3 . . 1 . . . . . . . . . 1 . . . Time 386 | . . . 320 . . 22 . . . . . . . . . 44 . . . Parts Recycled . | . . . . . . . . . . . . . . . . . . . . Recycled Matter . | . . . . . . . . . . . . . . . . . . . . Retrieved Matter 100 | . . . . . . 100 . . . . . . . . . . . . . Retrieved Components 2 | . . . . . . . . . . . 2 . . . . . . . . Parts Scanalyzed 8 | . . . 2 . 1 1 . . . . . . . . . 4 . . . Part Schematics Acquired 6 | . . . 2 . 1 . . . . . . . . . . 3 . . . Parts Damaged 3 | . . . 2 . . . . . . . . . . . . 1 . . . Bothacking | -11 -10 -10 -9 -9 -8 -7 -7 -7 -7 -6 -6 -6 -6 -6 -5 -5 -5 -5 -5 ------------ Run | Jun Mat Min Mat Min Mat Fac Low Low Dat Pro Fac Low Low Zio Pro Fac Upp Upp War Used RIF Installer . | . . . . . . . . . . . . . . . . . . . . Robots Hacked 9 | . . . . . . . . . 1 1 . . . 3 . 3 . . 1 Non-combat 1 | . . . . . . . . . . . . . . 1 . . . . . Combat 8 | . . . . . . . . . 1 1 . . . 2 . 3 . . 1 Robot Hacks Applied 9 | . . . . . . . . . 1 1 . . . 3 . 3 . . 1 parse_system 9 | . . . . . . . . . 1 1 . . . 3 . 3 . . 1 Relay Couplers Released . | . . . . . . . . . . . . . . . . . . . . Fabnet Peak Effective % . | . . . . . . . . . . . . . . . . . . . . Robots Rewired 9 | . . . . . . . . 4 . . . 2 . . 2 . . 1 . Allies Hacked 3 | . . . . . . . . . . . . . . . 1 2 . . . Hacks Repelled . | . . . . . . . . . . . . . . . . . . . . Allies | -11 -10 -10 -9 -9 -8 -7 -7 -7 -7 -6 -6 -6 -6 -6 -5 -5 -5 -5 -5 -------- Run | Jun Mat Min Mat Min Mat Fac Low Low Dat Pro Fac Low Low Zio Pro Fac Upp Upp War Total Allies 33 | . . 2 . . . . . 4 . 1 1 2 . 15 2 5 . 1 . Largest Group 18 | . . 2 . . . . . 4 4 5 1 3 3 18 18 10 2 2 . Highest-Rated Group 586 | . . 42 . . . . . 124 124 220 99 163 163 586 586 302 111 111 . Highest-Rated Ally 99 | . . 31 . . . . . 31 31 96 99 99 99 95 95 85 85 85 . Zionite Dispatches 2 | . . . . . . . . . . . . . . . . 2 . . . Heavy 1 | . . . . . . . . . . . . . . . . 1 . . . Fire 1 | . . . . . . . . . . . . . . . . 1 . . . Total Orders 45 | . . . 16 . 3 23 2 . . . . . . . . . . . 1 EXPLORE 4 | . . . 2 . . . 1 . . . . . . . . . . . 1 RETURN 41 | . . . 14 . 3 23 1 . . . . . . . . . . . . Ally Attacks 412 | . . 28 49 . 19 97 1 . . 53 . 14 3 . 82 54 7 5 . Total Damage 8203 | . . 485 188 . 126 415 . . . 1106 . 820 201 . 3182 1345 193 142 . Kills 61 | . . 7 8 . . 1 . . . 11 . 6 2 . 15 9 2 . . Allies Corrupted 5 | . . . . . . 1 . . . . . . . . 1 2 . . 1 Allies Melted 2 | . . . . . . . . . . . . . . . . . . . 2 Intel | -11 -10 -10 -9 -9 -8 -7 -7 -7 -7 -6 -6 -6 -6 -6 -5 -5 -5 -5 -5 ------- Run | Jun Mat Min Mat Min Mat Fac Low Low Dat Pro Fac Low Low Zio Pro Fac Upp Upp War Robot Analysis Total 2 | . . . 1 . . 1 . . . . . . . . . . . . . Derelict Logs Recovered 17 | . . 1 . 1 . . . 2 . 1 . 3 2 2 2 . 1 2 . Drone Launches 112 | . . . 41 . 10 58 2 . . . . . . . . . . . 1 Drone Recoveries 108 | . . . 41 . 10 56 1 . . . . . . . . . . . . Zionite Intel Received 1 | . . . . . . . . . . . . . . . . 1 . . . Emergency Access 1 | . . . . . . . . . . . . . . . . 1 . . . Exploration | -11 -10 -10 -9 -9 -8 -7 -7 -7 -7 -6 -6 -6 -6 -6 -5 -5 -5 -5 -5 ------------- Run | Jun Mat Min Mat Min Mat Fac Low Low Dat Pro Fac Low Low Zio Pro Fac Upp Upp War Turns Passed 26585 | 218 280 854 1966 1363 547 2834 1129 1559 169 1391 2529 1207 1019 1626 1111 1940 1224 1623 1996 Spaces Moved 16519 | 119 195 563 882 810 312 1670 844 1031 141 1139 1515 885 775 1190 777 1110 747 1010 804 Core 6 | 5 . . . . . . . . . . . . . . . . . 1 . Treads 4522 | 34 . 98 882 810 312 411 . . . . . . . . . 775 747 120 333 Legs 1302 | 80 195 465 . . . . . . . . . . . . . . . 105 457 Wheels 10675 | . . . . . . 1259 844 1031 141 1139 1515 885 775 1190 777 335 . 784 . Hover 3 | . . . . . . . . . . . . . . . . . . . 3 Flight 11 | . . . . . . . . . . . . . . . . . . . 11 Fastest Speed 50 | 50 120 120 160 160 160 115 115 115 115 115 115 130 130 115 130 130 160 95 96 Average Speed 139 | 128 120 126 160 160 164 125 127 126 115 115 129 130 130 129 130 150 160 136 220 Slowest Speed 1350 | 160 120 160 160 160 240 160 130 130 115 115 130 130 130 130 130 160 160 1350 740 Overloaded Moves . | . . . . . . . . . . . . . . . . . . . . Propulsion Burnouts . | . . . . . . . . . . . . . . . . . . . . Robots Hopped 2 | . . . . . . . . 1 . . . . . . . 1 . . . Cave-ins Triggered . | . . . . . . . . . . . . . . . . . . . . Exploration Rate (%) 66 | 6 38 70 67 94 21 39 96 89 79 97 22 94 82 89 86 21 73 87 87 Regions Visited 19 Branch Regions 13 Pre-discovered Areas 5 | . . . . . . . . . 1 1 . 2 . . . . . 1 . Known Exits Taken 16 | . 1 . 1 1 1 1 1 1 1 1 1 1 1 1 1 1 1 . . Unknown Exits Taken 3 | 1 . 1 . . . . . . . . . . . . . . . 1 . Scrap Searched 24 | . . 2 . 2 . . 2 2 . 1 . 3 2 3 1 . . 6 . Spaces Dug 94 | . . . . . 1 50 . 2 . 2 3 . . . 10 25 . 1 . Terrain Destroyed 669 | . . . . 66 1 57 4 47 . 16 114 21 . . 51 36 43 61 152 Melee 86 | . . . . . 1 50 . 2 . 2 3 . . . 2 25 . 1 . Projectile 102 | . . . . 3 . 7 4 7 . 3 11 1 . . 5 11 4 41 5 AOE 481 | . . . . 63 . . . 38 . 11 100 20 . . 44 . 39 19 147 Terrain Rammed . | . . . . . . . . . . . . . . . . . . . . Walls Destroyed . | . . . . . . . . . . . . . . . . . . . . Machines Disabled . | . . . . . . . . . . . . . . . . . . . . Actions | -11 -10 -10 -9 -9 -8 -7 -7 -7 -7 -6 -6 -6 -6 -6 -5 -5 -5 -5 -5 --------- Run | Jun Mat Min Mat Min Mat Fac Low Low Dat Pro Fac Low Low Zio Pro Fac Upp Upp War Total 19262 | 150 219 649 1382 853 338 2238 872 1211 148 1172 2009 916 784 1264 837 1298 764 1150 1008 Wait 1326 | . 2 24 367 6 5 355 7 27 . . 299 3 . 53 16 57 5 13 87 Move 16496 | 118 194 562 881 809 311 1669 843 1028 140 1138 1514 884 774 1189 776 1107 746 1009 804 Hop 2 | . . . . . . . . 1 . . . . . . . 1 . . . Pick Up 127 | 6 3 5 18 3 1 16 1 5 . 3 20 4 . 1 1 15 . 15 10 Fast Attach 163 | 7 1 2 13 . . 10 . 5 . 2 41 . 3 6 2 20 . 17 34 Attach 65 | . . 1 2 . 4 6 1 9 3 2 13 . . . . 4 . 14 6 Detach 15 | . . . 2 . 1 . . 1 3 . 7 . . . . . . . 1 Swap 147 | 3 2 9 10 6 4 16 3 7 1 4 18 8 4 4 6 21 2 12 7 Drop 260 | . 4 14 31 5 4 31 1 3 . . 59 1 3 7 3 31 . 17 46 Fire 392 | 16 13 32 58 20 7 59 16 26 . 18 28 9 . . 15 11 10 44 10 Melee 132 | . . . . . 1 60 . 9 1 5 10 . . 4 2 29 . 9 2 Ram . | . . . . . . . . . . . . . . . . . . . . Kick 4 | . . . . . . . . 4 . . . . . . . . . . . Crush 4 | . . . . 4 . . . . . . . . . . . . . . . Escape Stasis 16 | . . . . . . 16 . . . . . . . . . . . . . Rewire 112 | . . . . . . . . 86 . . . 7 . . 16 2 . . 1 Trap 1 | . . . . . . . . . . . . . . . . . 1 . . Miscellaneous . | . . . . . . . . . . . . . . . . . . . . Route ------- -11/Junkyard -10/Materials -10/Mines (discovered 2 exits: *Mat x2) -9/Materials (discovered 2 exits: *Mat / *Min) -9/Mines -8/Materials -7/Factory (discovered 4 exits: *Fac x2 / *Low x2) -7/Lower Caves -7/Lower Caves (discovered 2 exits: *Fac / *Dat) -7/Data Miner -6/Proximity Caves -6/Factory -6/Lower Caves -6/Lower Caves (discovered 2 exits: *Fac / *Zio) -6/Zion -5/Proximity Caves -5/Factory (discovered 4 exits: *Fac x2 / *Upp x2) -5/Upper Caves -5/Upper Caves (discovered 2 exits: *Fac / *War) -5/Warlord History --------- Turn | Location | Event 9 | -11/Junkyard | Discovered new exit (range 15) 219 | -11/Junkyard | Entered Materials 301 | -10/Materials | Build established: Mutant 314 | -10/Materials | Identified exit to Mines 499 | -10/Materials | Entered Mines 647 | -10/Mines | Discovered new exit (range 13) 784 | -10/Mines | Found a damaged Exp. Sensor Array with a note attached 787 | -10/Mines | Found Prototype Device 812 | -10/Mines | Identified Exp. Sensor Array 930 | -10/Mines | Discovered new exit (range 9) 1143 | -10/Mines | Build established: Scavenger-Mutant 1168 | -10/Mines | Found the Drone Emporium 1173 | -10/Mines | Learned Materials stockpile data 1176 | -10/Mines | Found Prototype Device 1176 | -10/Mines | Identified Thief Drone Bay 1353 | -10/Mines | Entered Materials 1353 | -9/Materials | Evolved 2 slots: Utility x1, Weapon x1 1714 | -9/Materials | Repaired Exp. Sensor Array 2014 | -9/Materials | Build established: Skirmisher 2098 | -9/Materials | Discovered new exit (range 15) 2117 | -9/Materials | Destroyed 11 combat bots 2184 | -9/Materials | Identified exit to Materials 2676 | -9/Materials | Build established: Scavenger-Gunner 2706 | -9/Materials | Repaired Broken Exp. Sensor Array 2785 | -9/Materials | Repaired Broken Enh. Autogun 3094 | -9/Materials | Build established: Skirmisher 3261 | -9/Materials | Discovered new exit (range 16) 3318 | -9/Materials | Identified exit to Mines 3319 | -9/Materials | Entered Mines 3335 | -9/Mines | Met a Derelict shopkeep closing up shop 3399 | -9/Mines | Learned location of 1 exit from Lower Caves 3625 | -9/Mines | Assembled infested the area 3630 | -9/Mines | Assisted by a Guerilla fighting off Assembled 3690 | -9/Mines | Destroyed 10 combat bots 3770 | -9/Mines | A weapon hastily lodged in a ceiling crevice suddenly fell to the ground 4126 | -9/Mines | Discovered exit to Materials (range 4) 4682 | -9/Mines | Entered Materials 4682 | -8/Materials | Evolved 2 slots: Utility x2 4952 | -8/Materials | Discovered new exit (range 16) 4983 | -8/Materials | Identified exit to Factory 5229 | -8/Materials | Entered Factory 5229 | -7/Factory | Evolved 2 slots: Utility x1, Weapon x1 5392 | -7/Factory | Fabricated Enh. Autogun? 6036 | -7/Factory | Discovered new exit (range 16) 6063 | -7/Factory | Identified exit to Factory 6148 | -7/Factory | Garrison activated, responded to threat 6661 | -7/Factory | Build established: Mutant 6852 | -7/Factory | Fabricated Enh. Autogun (x1) 7222 | -7/Factory | Discovered exit to Factory (range 13) 7365 | -7/Factory | Identified exit to Lower Caves 7441 | -7/Factory | Repaired Imp. Medium Armor Plating 8063 | -7/Factory | Entered Lower Caves 8064 | -7/Lower Caves | Identified exit to Lower Caves 8245 | -7/Lower Caves | Attracted the attention of an 0b10 checkpoint 8416 | -7/Lower Caves | Build established: Tank 8977 | -7/Lower Caves | Attracted the attention of an 0b10 base 9192 | -7/Lower Caves | Entered another Lower Caves area 9268 | -7/Lower Caves | Spotted B-75 Beast 9298 | -7/Lower Caves | Discovered exit to Factory (range 5) 9300 | -7/Lower Caves | Encountered a Warlord checkpoint 9385 | -7/Lower Caves | Destroyed B-75 Beast 9683 | -7/Lower Caves | Learned Factory stockpile data 9769 | -7/Lower Caves | Found Alien Artifact 9769 | -7/Lower Caves | Identified Core Expander 9769 | -7/Lower Caves | Installed Core Expander, added new Propulsion slot 10126 | -7/Lower Caves | Attracted the attention of an 0b10 base 10152 | -7/Lower Caves | Destroyed 12 combat bots 10237 | -7/Lower Caves | Lost 8 parts (1p3u4w) 10274 | -7/Lower Caves | Learned Extension garrison access intel 10463 | -7/Lower Caves | Found Prototype Device 10535 | -7/Lower Caves | Discovered new exit (range 12) 10551 | -7/Lower Caves | Identified exit to Data Miner 10606 | -7/Lower Caves | Attacked by a delusional Derelict stockpiling Unaware 10751 | -7/Lower Caves | Entered Data Miner 10751 | -7/Data Miner | Accompanied by 4 allies 10751 | -7/Data Miner | Discovered new exit (range 6) 10756 | -7/Data Miner | Identified exit to Proximity Caves 10772 | -7/Data Miner | Met Data Miner 10814 | -7/Data Miner | Learned location of Section 7 (-2) 10814 | -7/Data Miner | Acquired the access code to Warlord's prototype stash 10843 | -7/Data Miner | Received God Mode back door access code from Data Miner 10920 | -7/Data Miner | Entered Proximity Caves 10920 | -6/Proximity Caves | Accompanied by 4 allies 10999 | -6/Proximity Caves | Escorted by Enhanced Grunt 11000 | -6/Proximity Caves | Attracted the attention of an 0b10 checkpoint 11223 | -6/Proximity Caves | Build established: Scavenger-Gunner 11291 | -6/Proximity Caves | Learned Factory security intel 11418 | -6/Proximity Caves | Discovered exit to Factory (range 11) 11580 | -6/Proximity Caves | Attracted the attention of an 0b10 base 11625 | -6/Proximity Caves | Found Exp. Thermal Shield 11658 | -6/Proximity Caves | Learned Armory garrison access intel 11658 | -6/Proximity Caves | Learned Factory trap positions 11658 | -6/Proximity Caves | Learned location of 1 exit from Proximity Caves 11658 | -6/Proximity Caves | Learned location of Armory (-4) 11953 | -6/Proximity Caves | Build established: Scavenger-Mutant 12018 | -6/Proximity Caves | Spotted B-75 Beast 12311 | -6/Proximity Caves | Entered Factory 12311 | -6/Factory | Evolved 2 slots: Utility x2 12312 | -6/Factory | Loaded intel: 62 trap records 12312 | -6/Factory | Identified Heart of Steel 12937 | -6/Factory | Build established: Assassin 12959 | -6/Factory | Discovered new exit (range 14) 12976 | -6/Factory | Identified exit to Lower Caves 13197 | -6/Factory | Incoming investigation squad redirected 13382 | -6/Factory | Fabricated Exp. Sensor Array (x1) 13945 | -6/Factory | Build established: Skirmisher 14568 | -6/Factory | Found Prototype Launcher 14568 | -6/Factory | Identified Scatter Rocket Array 14739 | -6/Factory | Heart of Steel transformed into Warbot 14840 | -6/Factory | Entered Lower Caves 14840 | -6/Lower Caves | Accompanied by 1 ally (Warbot) 15115 | -6/Lower Caves | Attracted the attention of an 0b10 outpost 15414 | -6/Lower Caves | Learned location of Extension (-4) 15421 | -6/Lower Caves | Learned Factory security intel 15726 | -6/Lower Caves | Attracted the attention of an 0b10 checkpoint 15798 | -6/Lower Caves | Learned location of Zion (-6) 16041 | -6/Lower Caves | Discovered new exit (range 3) 16041 | -6/Lower Caves | Spotted B-75 Beast 16046 | -6/Lower Caves | Identified exit to Lower Caves 16047 | -6/Lower Caves | Entered another Lower Caves area 16047 | -6/Lower Caves | Accompanied by 3 allies (Warbot) 16136 | -6/Lower Caves | Discovered new exit (range 8) 16145 | -6/Lower Caves | Identified exit to Factory 16375 | -6/Lower Caves | Build established: Mutant 16712 | -6/Lower Caves | Identified exit to Zion 16889 | -6/Lower Caves | Learned location of 1 exit from Factory 17066 | -6/Lower Caves | Entered Zion 17066 | -6/Zion | Accompanied by 3 allies (Warbot) 17081 | -6/Zion | Given A8's code to call for help 17187 | -6/Zion | Discovered new exit (range 9) 17191 | -6/Zion | Acquired unknown access codes intercepted by a Zionite 17266 | -6/Zion | System corruption cleaned by Quarantine Array 17390 | -6/Zion | Learned Factory emergency access door positions 17420 | -6/Zion | Build established: Assassin 17646 | -6/Zion | Gained Derelict followers 17716 | -6/Zion | Gained Derelict followers 17934 | -6/Zion | Found Prototype Device 17934 | -6/Zion | Identified Phasing AFG 18129 | -6/Zion | Imprinted 18131 | -6/Zion | Declared Zion's savior 18308 | -6/Zion | Gained Derelict followers 18467 | -6/Zion | Learned location of 1 exit from Factory 18645 | -6/Zion | Identified exit to Proximity Caves 18692 | -6/Zion | Entered Proximity Caves 18692 | -5/Proximity Caves | Accompanied by 18 allies (Warbot) 18985 | -5/Proximity Caves | Spotted B-75 Beast 18988 | -5/Proximity Caves | Build established: Skirmisher 18997 | -5/Proximity Caves | Allies destroyed B-75 Beast 19190 | -5/Proximity Caves | Learned Factory stockpile data 19279 | -5/Proximity Caves | Attracted the attention of an 0b10 outpost 19474 | -5/Proximity Caves | Learned Factory stockpile data 19638 | -5/Proximity Caves | Attracted the attention of an 0b10 checkpoint 19803 | -5/Proximity Caves | Entered Factory 19803 | -5/Factory | Accompanied by 7 allies 19803 | -5/Factory | Evolved 2 slots: Utility x2 19804 | -5/Factory | Identified exit to Upper Caves 19805 | -5/Factory | Identified exit to Factory 19988 | -5/Factory | Retrieved Zion intel report: Emergency Access 19989 | -5/Factory | Zion Fire squad teleported in 20613 | -5/Factory | Build established: Scavenger-Gunner 20721 | -5/Factory | Found Prototype Launcher 20721 | -5/Factory | Identified Tesla Bomb Launcher 20856 | -5/Factory | Found Prototype Launcher 20856 | -5/Factory | Identified Mni. Smartbomb Launcher 21137 | -5/Factory | Zion Heavy squad teleported in 21261 | -5/Factory | Discovered exit to Factory (range 16) 21284 | -5/Factory | Terminal network hard line cut 21384 | -5/Factory | Cargo convoy interrupted 21390 | -5/Factory | Repaired Matter Filter 21743 | -5/Factory | Entered Upper Caves 21743 | -5/Upper Caves | Accompanied by 2 allies 21856 | -5/Upper Caves | Identified exit to Upper Caves 21962 | -5/Upper Caves | Attracted the attention of an 0b10 checkpoint 22258 | -5/Upper Caves | Build established: Scavenger-Mutant 22571 | -5/Upper Caves | Encountered a Warlord checkpoint 22967 | -5/Upper Caves | Entered another Upper Caves area 22967 | -5/Upper Caves | Accompanied by 2 allies 23007 | -5/Upper Caves | Discovered exit to Factory (range 14) 23057 | -5/Upper Caves | Learned Factory security intel 23176 | -5/Upper Caves | Attracted the attention of an 0b10 outpost 23207 | -5/Upper Caves | Found Prototype Protection 23207 | -5/Upper Caves | Identified Zio. Heavy Carapace 23213 | -5/Upper Caves | Destroyed 7 combat bots 23253 | -5/Upper Caves | System corruption reached 10% 23273 | -5/Upper Caves | Found Prototype Protection 23273 | -5/Upper Caves | Identified Zio. Weapon Casing 23313 | -5/Upper Caves | Lost 17 parts (1p2n9u5w) 23705 | -5/Upper Caves | Attracted the attention of an 0b10 checkpoint 23764 | -5/Upper Caves | Lost 3 parts (3u) 24000 | -5/Upper Caves | Build established: Derelict-Gunner 24212 | -5/Upper Caves | Discovered new exit (range 14) 24349 | -5/Upper Caves | Attacked by a delusional Derelict stockpiling parts 24590 | -5/Upper Caves | Entered Warlord 24662 | -5/Warlord | System corruption cleaned by Quarantine Array 25232 | -5/Warlord | Warlord's base attacked by MAIN.C 25256 | -5/Warlord | Found Prototype Energy Gun 25256 | -5/Warlord | Identified Vortex Rail 25272 | -5/Warlord | Found Prototype Energy Cannon 25272 | -5/Warlord | Identified Vortex Driver 25282 | -5/Warlord | Found Prototype Launcher 25282 | -5/Warlord | Identified Vortex Catalyst Activator 25582 | -5/Warlord | Warlord forces counterattacked 25786 | -5/Warlord | Found Prototype Device 25786 | -5/Warlord | Identified Wardrone Bay 25907 | -5/Warlord | Warlord base infiltrated, sounded retreat 26150 | -5/Warlord | Core integrity fell below 50% 26232 | -5/Warlord | Opened Warlord's prototype stash 26250 | -5/Warlord | Found Prototype Processor 26256 | -5/Warlord | Found System Mapper 26338 | -5/Warlord | Spotted Executioner 26347 | -5/Warlord | Spotted Executioner 26383 | -5/Warlord | Core integrity fell below 20% 26390 | -5/Warlord | Identified Exp. Armor Integrity Analyzer 26415 | -5/Warlord | Destroyed Executioner 26436 | -5/Warlord | Destroyed 7 combat bots 26500 | -5/Warlord | Found Prototype Processor 26500 | -5/Warlord | Identified Exp. Targeting Computer 26521 | -5/Warlord | Found Prototype Reactor 26586 | -5/Warlord | Spotted Executioner 26586 | -5/Warlord | Destroyed by Executioner with Helical Railgun Last Messages --------------- 26539_ Dropped Neutrino Core. 26548_ Acquired Zio. Heavy DM Reactor. 26551_ Dropped Cld. Antigrav System. 26551_ Acquired Neutrino Core. 26552_ System corrupted: Substantial component data lost. 26574_ Acquired 23 matter. 26575_ System corrupted: Energy discharge (-32). 26575_ Acquired 37 matter. 26577_ Penetrated by Slug. 26586_ Destroyed Adv. Heat Sink. 26586_ P-70 Sage destroyed. 26586_ Destroyed Antigrav System. 26586_ P-70 Sage destroyed. 26586_ Destroyed Prototype Processor. 26586_ Storage disabled. 26586_ Vortex Catalyst Activator destroyed. 26586_ Destroyed Vortex Catalyst Activator. 26586_ Adv. Cooling System destroyed. 26586_ Destroyed Adv. Cooling System. 26586_ Penetrated by Slug. Map ----- +----------------------------------------------------+ | ???## ###### [[[ # + "" | | ????# #????# # ###### "" | | ????# #????###########+##????# """ | | ????# #?????????????# ????# """ | | ????#+##+#####?????????# #???# "" | | ????# #?????????# #???# "" | | ????# #?????????# #???# | | ????# #?????????######???# | | ????# #?????????????##??######### | | ????# #?????????????# #??? | | ????# #???????####### """" #??? | | ????# #???????# # """" #??? | | ????# #???????# # """" #??? | | ????# #??###### # """ #??? | | ????#####+####### # # #??? | | ??????#^ # !! # #### | | ??????# + ! / # + | | ??????#+######### #[]// # " | | ??????# #???????## ### ##""""""% | | ????? #???????# #?# # " | | ????# #???????# #?# #""" """" | | ????# #???????# ### + " " | | ????#||| #????###; ; ; # " | | ????#||| #????# ; ;;;;;###;g " " | | ????###########;;;;;; !E l g " # | | ??????????# @ ; %ppg g " # | | ??????????# [%% " #?## | | ??????????# "" p ! ;###### #####??? | | ??????????# " #????###??????? | | ??????????# "" ##????????????? | | ??????????# """ #????????????? | | ??????????# """ % ####?????????? | | ??????????# % # ###???????? | | ??????????####; #???????? | | ?????????????# ##???????? | | ?????????????# ; ;;""""###?????? | | ?????????????# #?????? | | ?????????????# ] #?????? | | ????????????## #?????? | | ????????????# #?????? | | ????????????# " X#?????? | | ????????????# " #" ##?????? | | ????????????## " # #?????? | | ?????????????# " "# = #?????? | | ?????????????## " "# #?????? | | ??????????????# ## "# #?????? | | ??????????????##?# "# = #?????? | | ?????????????????#""""" ""# #?????? | | ?????????????????#################?????? | | ???????????????????????????????????????? | +----------------------------------------------------+ Best States ------------- Heat Dissipation 98 Energy Generation 35 Energy Capacity 315 Matter Stores 300 Matter Capacity 300 Sight Range 20 Robot Scan Range 20 Terrain Scan Range 16 Terrain Scan Density 210 Armor Coverage 1200 Resistance: KI 20 Resistance: TH 30 Resistance: EM 25 Propulsion Shielding 66 Weapon Shielding 100 Weapon Cycling 20 Evasion (%) 55 Targeting Accuracy 12 Target Analysis 6 Core Analysis 6 Armor Integrity Analysis 50 Recoil Reduction 3 Matter Filtering 30 Kinecelleration 40 Offensive Hacking 45 Item Schematics ----------------- Enh. Autogun | -9/Materials | Scanalyzed Exp. Sensor Array | -9/Materials | Scanalyzed Autogun | -8/Materials | Scanalyzed Reaction Control System | -8/Materials | Hacked Combat Drone Bay | -7/Data Miner | Free Lgt. Regenerative Plating | -7/Data Miner | Free Cld. Cesium-ion Thruster | -7/Data Miner | Free Gravity Neutralizer | -7/Data Miner | Free Imp. Lightning Gun | -7/Data Miner | Free Cmb. Gravmag System | -7/Data Miner | Free Adv. Drone Bay | -7/Data Miner | Free Adv. Terrain Scanner | -7/Data Miner | Free Imp. Plasma Cutter | -7/Data Miner | Free Point Defense System | -7/Data Miner | Free Phase Gun | -7/Data Miner | Free Hvy. Riot Gun | -6/Zion | Free Battle Cannon | -6/Zion | Free Flamer | -6/Zion | Free Ripper | -6/Zion | Free Imp. Arc Projector | -6/Zion | Archive Mak. Hover Unit | -6/Zion | Archive Hvy. Gauss Cannon | -6/Zion | Archive Point Defense Array | -6/Zion | Archive Magnetic Acceleration Cannon | -6/Zion | Archive Lrn. Proton Cannon | -6/Zion | Archive Hyp. Coil Gun | -6/Zion | Archive Remote Shield | -6/Zion | Archive Enh. Optical Array | -6/Zion | Archive Imp. Recalibrator | -6/Zion | Archive Imp. Medium Treads | -6/Zion | Archive Mni. Smartbomb Launcher | -5/Factory | Scanalyzed Mak. Hacking Suite | -5/Factory | Scanalyzed Scatter Rocket Array | -5/Factory | Scanalyzed Robot Schematics ------------------ G-50 Soldier | -7/Data Miner | Free S-27 Virus | -7/Data Miner | Free L-41 Fighter | -7/Data Miner | Free R-10 Processor | -7/Data Miner | Free E-15 Imp | -7/Data Miner | Free D-83 Annihilator | -6/Zion | Archive Fabricated ------------ Enh. Autogun | x1 | -7/Factory Enh. Autogun | x1 | -7/Factory Exp. Sensor Array | x1 | -6/Factory Alien Tech Used ----------------- Core Expander Achievements -------------- Reappropriation The Oracle Challenges ------------ None Game ------ Seed SurveybotWeaponLauncher Manual? 0 Play Time 04:40:57 Cumulative 70.0 hours Start 2023.11.28 @ 03:51:43 End 2023.11.29 @ 02:07:34 Sessions 5 Manual Loads 0 Difficulty Rogue Special Mode None Game No. 23 Rogue 23 Adventurer 0 Explorer 0 Win Type - Total 0 Types 0/0/0/0/0/0/0/0/0 Lore% 38 Gallery% 55 Achievement% 46 Wizard Run 0 Options --------- ASCII 0 Keyboard 0 Movement Mouse Keybinds 0 Fullscreen 2 Font 18/SmallcapsGlow Map View 76x50 Tactical HUD 1 Map Filters NONE Filters NONE Steam 1 RUN: cc05103a-eb8e-400f-8352-ba4414b07b6d